bitfinex-derivatives/quotes_ETHF0:USTF0_20250712
["timestamp","ask_amount","ask_price","bid_price","bid_amount"]
[1752296265745,4.12805,2949.6,2949.5,31.89600916]
[1752296265948,4.12805,2949.6,2949.5,59.02677916]
[1752296267246,2.5383,2949.6,2949.5,59.02677916]
[1752296268853,3.21605,2949.6,2949.5,59.02677916]
[1752296269750,4.14915,2949.6,2949.5,58.34900916]
[1752296270058,4.14915,2949.6,2949.5,59.02677916]
[1752296271259,3.4714,2949.6,2949.5,59.02677916]
[1752296271947,4.14915,2949.6,2949.5,59.02677916]
[1752296275156,2.5383,2949.6,2949.5,59.02677916]
[1752296275357,3.21605,2949.6,2949.5,59.02677916]
[1752296276262,5.3681864,2949.6,2949.5,59.02677916]
[1752296276461,5.3681864,2949.6,2949.5,58.34900916]
[1752296276961,5.3681864,2949.6,2949.5,59.02677916]
[1752296278061,5.3681864,2949.6,2949.5,31.89600916]
[1752296278259,5.3681864,2949.6,2949.5,58.15900916]
[1752296279055,5.3681864,2949.6,2949.5,18.8564]
[1752296279262,5.3681864,2949.6,2949.5,18.8607]
[1752296279449,5.3681864,2949.6,2949.5,45.0597]
[1752296280755,1.2190364,2949.6,2949.5,58.77707916]
[1752296282053,0.00508362,2949.8,2949.7,0.67773]
[1752296282358,4.754,2950.2,2950.1,4.09834]
[1752296282558,4.754,2950.2,2950.1,50.64504]
[1752296282853,5.43161,2950.2,2950.1,58.78694916]
[1752296283056,7.35851,2950.2,2950.1,58.10930916]
[1752296283455,7.35851,2950.2,2950.1,1.9127]
[1752296283760,3.4731,2949.9,2949.8,3.4207]
[1752296284061,4.15078,2949.9,2949.8,29.6127]
[1752296284263,4.15078,2949.9,2949.8,50.62811]
[1752296284462,4.15078,2949.9,2949.8,49.12011]
[1752296285056,4.15078,2949.9,2949.8,48.4424]
[1752296285659,4.15078,2949.9,2949.8,22.2504]
[1752296285858,4.15078,2949.9,2949.8,22.92811]
[1752296286161,4.15078,2949.9,2949.8,22.2504]
[1752296286464,4.15078,2949.9,2949.8,48.4124]
[1752296286860,4.15078,2949.9,2949.8,49.09011]
[1752296289165,4.15078,2949.9,2949.8,48.4124]
[1752296291262,4.15078,2949.9,2949.8,49.09011]
[1752296292665,3.4731,2949.9,2949.8,49.09011]
[1752296292856,3.4731,2949.9,2949.8,50.59811]
[1752296293056,2.54,2949.9,2949.8,58.74001916]
[1752296293463,3.21768,2949.9,2949.8,50.59811]
[1752296293663,2.54,2949.9,2949.8,50.59811]
[1752296294062,3.74640118,2949.9,2949.8,50.59811]
[1752296297264,3.74640118,2949.9,2949.8,58.74001916]
[1752296297463,1.20640118,2949.9,2949.8,58.74001916]
[1752296299671,3.75500118,2949.9,2949.8,58.74001916]
[1752296299875,5.36488118,2949.9,2949.8,22.92811]
[1752296300169,5.36488118,2949.9,2949.8,48.84711]
[1752296301273,4.68720118,2949.9,2949.8,48.84711]
[1752296301472,4.68720118,2949.9,2949.8,48.84411]
[1752296301473,5.36488118,2949.9,2949.8,48.84411]
[1752296302071,4.68720118,2949.9,2949.8,48.84411]
[1752296302772,5.53679217,2949.9,2949.8,48.84411]
[1752296302973,6.21447217,2949.9,2949.8,48.85611]
[1752296303168,5.53679217,2949.9,2949.8,48.85611]
[1752296304071,5.53679217,2949.9,2949.8,50.35771]
[1752296305674,6.21447217,2949.9,2949.8,48.85611]
[1752296306174,6.21447217,2949.9,2949.8,22.92811]
[1752296306371,6.21447217,2949.9,2949.8,48.80711]
[1752296306870,5.53679217,2949.9,2949.8,48.80711]
[1752296307168,6.21447217,2949.9,2949.8,45.41741]
[1752296307369,6.21447217,2949.9,2949.8,48.80711]
[1752296307570,6.21447217,2949.9,2949.8,48.1294]
[1752296307873,6.21447217,2949.9,2949.8,48.80711]
[1752296309175,4.68720118,2949.9,2949.8,50.30871]
[1752296309377,5.36488118,2949.9,2949.8,50.30871]
[1752296310378,4.68720118,2949.9,2949.8,50.30871]
[1752296311876,5.36488118,2949.9,2949.8,50.30871]
[1752296312074,4.68720118,2949.9,2949.8,50.30871]
[1752296313674,5.36488118,2949.9,2949.8,50.30871]
[1752296313874,5.36488118,2949.9,2949.8,48.80711]
[1752296319483,5.36488118,2949.9,2949.8,22.92811]
[1752296319680,5.36488118,2949.9,2949.8,48.60811]
[1752296320075,5.36488118,2949.9,2949.8,22.2504]
[1752296320276,5.36488118,2949.9,2949.8,45.21841]
[1752296320779,5.36488118,2949.9,2949.8,50.10971]
[1752296321583,5.36488118,2949.9,2949.8,47.9304]
[1752296322188,5.36488118,2949.9,2949.8,48.60811]
[1752296323084,5.36488118,2949.9,2949.4,3.2078]
[1752296323085,2.22350118,2949.9,2949.4,3.2078]
[1752296323383,2.4685,2949.6,2949.5,46.9468]
[1752296323581,4.60710118,2949.6,2949.5,46.9468]
[1752296324074,4.60710118,2949.6,2949.5,47.62457]
[1752296324273,4.60710118,2949.6,2949.5,49.01727]
[1752296324480,6.13444217,2949.6,2949.5,49.01727]
[1752296324677,5.45669217,2949.6,2949.5,49.01727]
[1752296324973,1.20640118,2949.6,2949.5,49.01727]
[1752296325183,2.65780118,2949.6,2949.5,49.01727]
[1752296325582,3.64210118,2949.6,2949.5,49.01727]
[1752296326784,3.64210118,2949.6,2949.5,50.02557]
[1752296327785,4.63700118,2949.6,2949.5,50.02557]
[1752296328282,5.31475118,2949.6,2949.5,50.02557]
[1752296328586,4.63700118,2949.6,2949.5,50.02557]
[1752296330887,3.64210118,2949.6,2949.5,50.02557]
[1752296331293,4.63700118,2949.6,2949.5,50.02557]
[1752296333189,2.20130118,2949.6,2949.5,47.62457]
[1752296333390,4.63700118,2949.6,2949.5,49.01727]
[1752296334089,5.31475118,2949.6,2949.5,49.01727]
[1752296334293,4.63700118,2949.6,2949.5,49.01727]
[1752296335785,1.20640118,2949.6,2949.5,49.01727]
[1752296336190,2.65780118,2949.6,2949.5,49.01727]
[1752296336392,3.64210118,2949.6,2949.5,49.01727]
[1752296336786,4.63700118,2949.6,2949.5,49.01727]
[1752296338694,3.64210118,2949.6,2949.5,49.01727]
[1752296338895,3.64210118,2949.6,2949.5,50.02557]
[1752296339696,4.63700118,2949.6,2949.5,50.02557]
[1752296340495,3.64210118,2949.6,2949.5,50.02557]
[1752296341994,3.64210118,2949.6,2949.5,33.07757]
[1752296342191,3.64210118,2949.6,2949.5,50.02557]
[1752296342798,2.4357,2949.6,2949.5,50.02557]
[1752296343094,3.63749979,2949.6,2949.5,50.02557]
[1752296343697,4.63239979,2949.6,2949.5,50.02557]
[1752296344897,1e-08,2949.6,2949.5,58.16747916]
[1752296345098,1.4514,2949.8,2949.7,1.68603]
[1752296345099,2.4357,2949.8,2949.7,1.68603]
[1752296345298,2.4357,2949.8,2949.7,50.02103]
[1752296345501,5.6435,2950.1,2950.0,4.02326]
[1752296345706,3.2078,2950.1,2950.0,50.87055099]
[1752296345997,8.16563099,2950.1,2950.0,47.005]
[1752296346200,7.48799099,2950.1,2950.0,48.62726]
[1752296346396,6.6384,2950.1,2950.0,50.01996]
[1752296347300,3.2078,2950.1,2950.0,58.16186916]
[1752296347494,4.6592,2950.1,2950.0,58.16186916]
[1752296348099,3.2078,2950.1,2950.0,58.16186916]
[1752296350900,1.4514,2950.5,2950.4,4.02317]
[1752296351099,2.4357,2950.5,2950.4,50.01087]
[1752296351300,2.4357,2950.5,2950.4,58.15277916]
[1752296352503,2.4357,2950.5,2950.4,58.15117916]
[1752296352898,3.4306,2950.8,2950.7,2.63038]
[1752296353105,3.4306,2950.8,2950.7,29.67108]
[1752296353402,3.4306,2950.8,2950.7,46.61588]
[1752296353997,2.4357,2950.8,2950.7,50.00558]
[1752296354198,2.4654,2950.8,2950.7,50.00558]
[1752296354400,2.4654,2950.8,2950.7,58.14748916]
[1752296354602,2.4283,2951.2,2951.1,4.07951]
[1752296354903,2.4283,2951.2,2951.1,33.11321]
[1752296355203,3.2078,2951.3,2950.9,4.14238362]
[1752296355204,1.014,2951.0,2950.9,4.14238362]
[1752296355399,4.94572099,2951.0,2950.9,47.69218362]
[1752296355799,4.26829099,2951.0,2950.9,48.36963362]
[1752296356097,4.26829099,2951.0,2950.9,47.69218362]
[1752296356302,4.94572099,2951.0,2950.9,47.69218362]
[1752296356700,4.94572099,2951.0,2950.9,43.52258362]
[1752296356906,6.12931515,2951.0,2950.9,25.64608362]
[1752296357103,6.12931515,2951.0,2950.9,0.00508362]
[1752296357500,5.45188515,2951.0,2950.8,25.639]
[1752296357801,3.4187,2950.5,2950.4,5.77665]
[1752296358002,3.4187,2950.5,2950.4,56.50295916]
[1752296358201,3.4187,2950.5,2950.4,59.89265916]
[1752296358704,3.4187,2950.5,2950.4,61.38835916]
[1752296359507,4.09625,2950.5,2950.4,61.38835916]
[1752296359710,3.4187,2950.5,2950.4,61.38835916]
[1752296360000,2.4283,2950.5,2950.4,61.38835916]
[1752296360199,1.014,2950.7,2950.6,1.63931]
[1752296360399,4.60148154,2950.7,2950.6,33.08921]
[1752296360603,2.4283,2950.7,2950.6,58.17671916]
[1752296362408,2.4283,2950.7,2950.6,50.03481]
[1752296362706,3.4187,2950.9,2950.8,0.9618]
[1752296362908,5.2787454,2950.9,2950.8,32.4097]
[1752296363200,5.2787454,2950.9,2950.8,49.3537]
[1752296363602,5.2787454,2950.9,2950.8,48.53548]
[1752296363909,3.61087346,2950.9,2950.8,58.17308916]
[1752296364109,4.60127346,2950.9,2950.8,58.17308916]
[1752296364609,5.27872346,2950.9,2950.8,57.49560916]
[1752296365008,3.4187,2950.9,2950.8,58.17308916]
[1752296365210,4.09615,2950.9,2950.8,57.49560916]
[1752296365707,4.09615,2950.9,2950.8,58.17308916]
[1752296365908,4.09615,2950.9,2950.8,57.49560916]
[1752296366910,4.09615,2950.9,2950.8,58.17308916]
[1752296367111,3.4187,2950.9,2950.8,58.17308916]
[1752296367509,1.4143,2950.9,2950.8,58.17308916]
[1752296367704,2.4283,2950.9,2950.8,58.17308916]
[1752296369006,2.4283,2950.9,2950.8,41.22908916]
[1752296369212,2.4283,2950.9,2950.8,58.17308916]
[1752296372511,1.014,2951.1,2951.0,3.13493]
[1752296372706,1.014,2951.1,2951.0,53.21893]
[1752296372907,4.2218,2951.6,2951.5,0.67732]
[1752296373108,6.81163346,2951.6,2951.5,29.67632]
[1752296373307,3.60383346,2951.6,2951.5,58.14792916]
[1752296374213,1.4143,2951.6,2951.5,58.14792916]
[1752296374712,2.0044,2951.8,2951.7,0.67727]
[1752296374905,2.0044,2951.8,2951.6,16.94]
[1752296375107,2.0044,2951.5,2951.4,19.50864]
[1752296375307,2.0044,2951.5,2951.4,53.25554916]
[1752296375512,4.09602,2951.5,2951.4,57.46360916]
[1752296375813,3.4187,2951.5,2951.4,58.14094916]
[1752296376209,2.4047,2951.9,2951.8,0.67725]
[1752296376410,4.59125866,2951.9,2951.8,31.56225]
[1752296376609,4.59125866,2951.9,2951.8,49.99635]
[1752296376804,4.59125866,2951.9,2951.8,49.3191]
[1752296377010,3.4187,2951.9,2951.8,49.3191]
[1752296377211,3.4187,2951.9,2951.8,49.99635]
[1752296378912,2.4283,2951.9,2951.8,58.13825916]
[1752296380811,0.9904,2952.1,2952.0,0.6772]
[1752296381016,2.4283,2952.1,2952.0,33.0489]
[1752296381213,2.4283,2952.1,2952.0,46.5968]
[1752296381214,3.59719465,2952.1,2952.0,46.5968]
[1752296381606,3.4187,2952.1,2952.0,49.9865]
[1752296381814,2.4283,2952.1,2952.0,49.9865]
[1752296384718,3.4187,2952.1,2952.0,49.9865]
[1752296386622,2.4283,2952.1,2952.0,58.12840916]
[1752296389920,1.4143,2952.1,2952.0,58.12840916]
[1752296390118,1.4143,2952.1,2952.0,61.33620916]
[1752296391325,3.3817,2952.3,2952.2,1.59186]
[1752296391517,3.3817,2952.3,2952.2,32.90306]
[1752296391819,3.3817,2952.3,2952.2,49.83906]
[1752296394115,3.2078,2952.7,2952.6,0.67706]
[1752296394319,1.8862,2952.7,2952.6,53.88695099]
[1752296394516,1.8862,2952.7,2952.6,59.78006916]
[1752296394717,3.3817,2952.4,2952.3,3.88493]
[1752296395023,3.3817,2952.4,2952.3,32.83563]
[1752296395215,3.3817,2952.4,2952.3,48.24793]
[1752296396222,3.3817,2952.4,2952.3,51.63763]
[1752296400918,3.3817,2952.4,2952.3,52.48722099]
[1752296401122,3.3817,2952.4,2952.3,53.88642099]
[1752296401621,1.4955,2952.6,2952.5,0.67709]
[1752296401820,1.4955,2952.6,2952.5,38.48079015]
[1752296401821,2.4829,2952.6,2952.5,38.48079015]
[1752296402021,3.3817,2952.6,2952.5,58.80489015]
[1752296402816,2.4829,2952.6,2952.5,58.80489015]
[1752296403719,3.3817,2952.6,2952.5,58.80489015]
[1752296404024,3.3817,2953.1,2953.0,0.67697]
[1752296404217,4.53754778,2953.1,2953.0,25.545]
[1752296404416,4.53754778,2953.1,2953.0,26.22197]
[1752296406332,4.53754778,2953.1,2953.0,28.08797]
[1752296407425,4.53754778,2953.1,2953.0,27.17327]
[1752296409224,4.53754778,2953.1,2953.0,28.08797]
[1752296409625,4.53754778,2953.1,2953.0,47.26876099]
[1752296409822,4.53754778,2953.1,2953.0,50.65846099]
[1752296410327,3.88462,2953.7,2953.6,0.67683]
[1752296410527,4.87202,2953.7,2953.6,0.67683]
[1752296410924,5.77082,2953.7,2953.6,0.67683]
[1752296411126,1.8862,2953.9,2953.8,3.94199]
[1752296411327,0.8988,2954.6,2953.8,46.69629099]
[1752296411526,1.8862,2954.1,2954.0,7.99933099]
[1752296411829,1.8862,2954.1,2954.0,33.52733099]
[1752296412029,1.8862,2954.1,2954.0,53.84263099]
[1752296416428,3.4036,2954.3,2954.2,4.1091]
[1752296416630,3.4036,2954.3,2954.2,29.6261]
[1752296417627,3.4036,2954.3,2954.2,30.47569099]
[1752296417825,1.9081,2954.3,2954.2,47.40049099]
[1752296418429,5.1159,2954.7,2954.6,1.68101]
[1752296418736,1.9081,2954.7,2954.6,50.78430099]
[1752296419834,3.3397,2954.7,2954.6,46.54101]
[1752296420629,3.3397,2954.7,2954.6,29.61501]
[1752296422229,4.01628,2954.7,2954.6,29.61501]
[1752296422429,3.3397,2954.7,2954.6,29.61501]
[1752296422936,3.3397,2954.7,2954.6,28.0337]
[1752296423336,3.3397,2954.7,2954.6,3.4324]
[1752296423536,3.3397,2954.7,2954.6,29.60801]
[1752296423932,3.3397,2954.7,2954.6,0.67661]
[1752296424142,3.3397,2954.7,2954.6,29.60501]
[1752296424143,1.0082,2954.7,2954.6,29.60501]
[1752296424538,1.9081,2954.7,2954.6,29.60501]
[1752296424835,4.01628,2954.7,2954.6,28.0237]
[1752296425039,3.3397,2954.7,2954.6,30.45360099]
[1752296425339,1.0082,2954.9,2954.8,4.10896]
[1752296425638,1.9081,2954.9,2954.8,33.84225099]
[1752296425838,1.9081,2954.9,2954.8,50.76385099]
[1752296426038,6.5475,2955.1,2955.0,4.10891]
[1752296426339,7.68294947,2955.1,2955.0,29.59991]
[1752296427043,8.35943947,2955.1,2955.0,26.16751]
[1752296427434,7.67716858,2955.1,2955.0,3.20421]
[1752296427635,7.67716858,2955.1,2954.8,0.9047]
[1752296427636,4.33746858,2955.1,2954.8,26.4924]
[1752296427931,3.3397,2955.5,2955.4,1.9091]
[1752296428136,1.68462,2955.4,2955.3,26.16343]
[1752296428440,4.01612,2955.4,2955.3,27.68673]
[1752296428640,4.01612,2955.4,2955.3,25.487]
[1752296428843,4.01612,2955.4,2955.1,3.10447]
[1752296428844,0.67646,2955.3,2955.1,3.10447]
[1752296429042,3.3397,2955.3,2955.2,4.10887]
[1752296430041,4.01615,2955.3,2955.2,4.10887]
[1752296430341,3.3397,2955.2,2955.1,29.59188]
[1752296430541,3.3397,2955.2,2955.1,46.51108]
[1752296430749,1.68461,2955.5,2955.4,3.20411]
[1752296431044,4.01611,2955.5,2955.4,3.4324]
[1752296431339,5.14584698,2955.5,2955.4,3.4324]
[1752296431539,1.68466,2955.3,2955.2,3.4324]
[1752296431735,4.01616,2955.3,2955.2,23.7405]
[1752296431936,4.01616,2955.3,2955.2,24.41697]
[1752296431937,3.3397,2955.3,2955.2,24.41697]
[1752296432133,1.4316,2955.2,2954.9,0.9047]
[1752296432338,1.9081,2955.0,2954.9,4.10894]
[1752296432639,1.9081,2955.0,2954.9,37.72484916]
[1752296432838,1.9081,2955.0,2954.9,58.03534916]
[1752296433241,1.9081,2955.0,2954.9,61.24314916]
[1752296433444,1.0082,2955.0,2954.9,61.24314916]
[1752296433741,2.58458,2955.2,2955.1,1.68089]
[1752296433940,2.58458,2955.2,2955.1,7.49859]
[1752296434242,2.58458,2955.2,2955.1,46.49989]
[1752296434443,1.9081,2955.2,2955.1,46.49989]
[1752296435240,7.22388,2955.6,2955.5,2.5277]
[1752296435441,8.35156678,2955.6,2955.5,3.4324]
[1752296435944,6.24358678,2955.6,2955.5,24.4161]
[1752296436350,1.12768678,2955.6,2955.5,49.8811]
[1752296436640,2.13588678,2955.6,2955.5,49.8811]
[1752296436841,1.0082,2955.6,2955.5,49.8811]
[1752296437042,1.9081,2955.6,2955.5,49.8811]
[1752296437240,3.3397,2955.8,2955.7,2.58545]
[1752296437441,4.4685387,2955.8,2955.7,4.10875]
[1752296437842,4.4685387,2955.8,2955.7,29.56875]
[1752296439142,5.1448687,2955.8,2955.7,29.56875]
[1752296439336,5.1448687,2955.8,2955.7,28.8924]
[1752296439536,5.1448687,2955.8,2955.7,1.5233]
[1752296439738,1.6846,2955.5,2955.4,25.454]
[1752296439945,4.01612,2955.4,2955.3,3.4324]
[1752296440246,5.1449587,2955.4,2955.3,27.9817]
[1752296440441,5.1449587,2955.4,2955.3,25.454]
[1752296440640,3.11629,2955.1,2955.0,1.5233]
[1752296440846,4.2451287,2955.1,2955.0,25.45]
[1752296441046,5.1450287,2955.1,2955.0,25.45]
[1752296442646,5.1450287,2955.1,2955.0,27.9777]
[1752296443044,5.1450287,2955.1,2955.0,3.4324]
[1752296444249,5.1450287,2955.1,2955.0,2.5277]
[1752296446347,3.2408,2955.0,2954.8,3.06894]
[1752296446549,4.3696387,2954.9,2954.8,24.35454]
[1752296447344,5.0461787,2954.9,2954.8,24.35454]
[1752296447649,4.3696387,2954.9,2954.8,24.35454]
[1752296448059,5.0461787,2954.9,2954.8,24.35454]
[1752296448452,5.0461787,2954.9,2954.8,24.35534]
[1752296449849,5.0461787,2954.9,2954.8,19.3844]
[1752296450050,5.0461787,2954.9,2954.8,1.4877]
[1752296450249,3.91738,2954.7,2954.6,7.30549]
[1752296450445,2.3396,2954.6,2954.5,1.4877]
[1752296450748,5.0462487,2954.6,2954.5,1.4877]
[1752296451144,3.91747,2954.3,2954.2,5.6706]
[1752296451459,1.63322,2954.1,2954.0,2.4628]
[1752296451651,3.91752,2954.1,2954.0,23.7364]
[1752296451952,3.91752,2954.1,2954.0,3.4211]
[1752296452152,3.91752,2954.1,2954.0,4.09784]
[1752296452349,1.8577,2954.1,2954.0,24.41314]
[1752296452546,1.3831,2954.4,2954.2,4.09778]
[1752296452547,1.63317,2954.3,2954.2,4.09778]
[1752296452750,3.65957748,2954.3,2954.2,3.4211]
[1752296452954,5.04267748,2954.3,2954.2,1.4877]
[1752296454154,1.63322,2954.1,2954.0,3.4211]
[1752296454355,3.91757,2953.9,2953.8,3.4211]
[1752296455854,3.91757,2953.9,2953.8,4.09789]
[1752296456056,3.91757,2953.9,2953.8,3.4211]
[1752296456654,3.91757,2953.9,2953.8,4.09789]
[1752296456952,1.8577,2953.9,2953.8,4.09789]
[1752296459561,0.9565,2954.0,2953.9,1.65184]
[1752296459764,1.8577,2954.0,2953.9,8.33713099]
[1752296459956,1.8577,2954.0,2953.9,4.94743099]
[1752296460156,1.8577,2954.0,2953.9,4.09784]
[1752296460358,1.8577,2954.0,2953.9,4.94743099]
[1752296461359,3.9175,2954.2,2954.1,4.09782]
[1752296461662,3.9175,2954.2,2954.1,3.4211]
[1752296461863,3.9175,2954.2,2954.1,2.4628]
[1752296462063,3.91754,2954.0,2953.9,3.4211]
[1752296462262,3.91754,2954.0,2953.9,23.7364]
[1752296462463,3.2408,2954.0,2953.9,24.41317]
[1752296462761,2.53444,2954.0,2953.9,24.41317]
[1752296462963,1.8577,2954.0,2953.9,24.41317]
[1752296464063,2.53444,2954.0,2953.9,24.41317]
[1752296465264,3.91754,2954.0,2953.9,23.7364]
[1752296465459,3.91754,2954.0,2953.9,22.7781]
[1752296465856,3.91754,2954.0,2953.9,23.45487]
[1752296466064,3.91754,2954.0,2953.9,24.41317]
[1752296468657,3.91754,2954.0,2953.9,21.803]
[1752296468862,3.91754,2954.0,2953.9,23.7364]
[1752296469058,3.91754,2954.0,2953.9,24.41317]
[1752296469263,3.2408,2954.0,2953.9,24.41317]
[1752296469463,3.91754,2954.0,2953.9,24.41317]
[1752296471971,3.91754,2954.0,2953.9,23.7364]
[1752296472471,3.91754,2954.0,2953.9,24.41397]
[1752296473165,0.00507484,2954.2,2954.1,0.67672]
[1752296473372,0.00507484,2954.2,2954.1,50.55361099]
[1752296473664,3.2078,2954.8,2954.7,1.65168]
[1752296473864,2.53426,2954.8,2954.7,23.6643]
[1752296474061,3.2831,2954.8,2954.7,24.34088]
[1752296474261,1.8577,2954.8,2954.7,24.34088]
[1752296475073,2.53426,2954.8,2954.7,24.34088]
[1752296475972,1.8577,2954.8,2954.7,24.34088]
[1752296476473,2.53426,2954.8,2954.7,24.34088]
[1752296477781,2.53426,2954.8,2954.7,23.6643]
[1752296477981,3.95966,2954.8,2954.7,23.6643]
[1752296478172,5.08311513,2954.8,2954.7,23.6643]
[1752296478974,5.08311513,2954.8,2954.5,3.2304]
[1752296478975,3.91661,2954.6,2954.5,3.2304]
[1752296479778,3.91661,2954.6,2954.5,3.90703]
[1752296479979,3.24,2954.6,2954.5,3.90703]
[1752296480481,5.04064961,2954.6,2954.5,3.2304]
[1752296480976,5.0406517,2954.6,2954.5,3.2304]
[1752296481783,1.56335,2954.4,2954.3,4.0931]
[1752296482086,3.91672,2954.1,2954.0,5.0186]
[1752296482287,3.91672,2954.1,2954.0,0.8853]
[1752296482682,3.91672,2954.1,2954.0,2.3049]
[1752296482883,3.91674,2954.0,2953.9,1.42467484]
[1752296483080,5.04066914,2954.0,2953.9,1e-08]
[1752296487092,3.91674,2954.0,2953.9,1e-08]
[1752296487393,5.03720136,2954.0,2953.9,1e-08]
[1752296491497,3.91686,2953.5,2953.4,1.4196]
[1752296491692,5.03732136,2953.5,2953.4,1.4196]
[1752296492093,3.91686,2953.5,2953.4,1.4196]
[1752296492794,1.8146,2953.1,2953.0,1.56226]
[1752296493002,0.8867,2953.1,2953.0,9.70416916]
[1752296493302,0.8867,2953.1,2953.0,30.02586916]
[1752296493600,0.8867,2953.1,2953.0,32.37096916]
[1752296494295,1.8146,2953.3,2953.2,1.56223]
[1752296494501,0.8867,2953.3,2953.2,7.29703]
[1752296494701,1.56359,2953.4,2953.3,1.5622]
[1752296494901,2.49149,2953.4,2953.3,3.9073]
[1752296495597,2.49149,2953.4,2953.3,3.2304]
[1752296496098,2.49149,2953.4,2953.3,3.9073]
[1752296497197,2.49149,2953.4,2953.1,0.8853]
[1752296497198,1.56363,2953.2,2953.1,0.8853]
[1752296497401,2.49153,2953.2,2953.1,11.12375916]
[1752296497598,2.49153,2953.2,2953.1,30.76770916]
[1752296497799,2.49153,2953.2,2953.1,31.69320916]
[1752296498599,2.49153,2953.2,2953.1,23.5513]
[1752296500606,3.91693,2953.2,2953.1,6.6201]
[1752296502603,3.91693,2953.2,2953.1,3.2304]
[1752296502809,3.91693,2953.2,2953.1,6.6201]
[1752296503308,3.91693,2953.2,2953.1,5.6946]
[1752296503809,3.91693,2953.2,2953.1,6.6201]
[1752296504303,0.9341,2953.0,2952.9,0.9255]
[1752296504504,3.96517,2953.0,2952.9,0.937]
[1752296504709,3.96517,2953.0,2952.9,4.3267]
[1752296505009,3.96517,2953.0,2952.9,6.6881]
[1752296507211,1.862,2953.0,2952.9,7.3651]
[1752296507411,0.67697,2953.1,2953.0,3.2892]
[1752296507606,0.67697,2953.1,2953.0,6.6789]
[1752296507910,2.58067,2953.1,2953.0,3.2892]
[1752296508108,2.58067,2953.1,2953.0,3.96617]
[1752296509609,0.67695,2953.2,2953.1,3.2892]
[1752296509809,3.70005091,2953.2,2953.1,3.2892]
[1752296510705,1.11940091,2953.2,2953.1,25.13664099]
[1752296511206,5.78839,2953.4,2953.3,3.9661]
[1752296511510,6.90918794,2953.4,2953.3,3.9661]
[1752296512904,3.70138794,2953.4,2953.3,3.9661]
[1752296513308,3.02449794,2953.4,2953.3,24.2854]
[1752296513603,2.05489794,2953.4,2953.3,24.2854]
[1752296514004,1.12079794,2953.4,2953.3,32.42730916]
[1752296514602,1.79767794,2953.4,2953.3,32.42730916]
[1752296516014,1.12079794,2953.4,2953.3,32.42730916]
[1752296516318,2.73177794,2953.4,2953.3,31.75040916]
[1752296516610,5.12757794,2953.4,2953.3,2.3729]
[1752296516917,2.58065,2953.1,2953.0,3.96617]
[1752296517113,3.70144794,2953.1,2953.0,6.6789]
[1752296517315,5.12764794,2953.1,2953.0,3.2892]
[1752296518415,5.12877809,2953.1,2953.0,3.2892]
[1752296520612,4.15917809,2953.1,2953.0,3.2892]
[1752296520815,1.79887809,2953.1,2953.0,31.75280916]
[1752296521316,1.12192809,2953.1,2953.0,32.42977916]
[1752296521616,1.79887809,2953.1,2953.0,32.42977916]
[1752296521817,1.12192809,2953.1,2953.0,32.42977916]
[1752296522621,1.79887809,2953.1,2953.0,32.42977916]
[1752296523117,1.79887809,2953.1,2953.0,31.75280916]
[1752296523910,1.79887809,2953.1,2953.0,32.42977916]
[1752296524111,1.79887809,2953.1,2953.0,31.75280916]
[1752296524410,1.79887809,2953.1,2953.0,32.42977916]
[1752296524811,1.79887809,2953.1,2953.0,31.75280916]
[1752296525217,5.12877809,2953.1,2953.0,23.6109]
[1752296525516,3.70257809,2953.1,2953.0,23.6109]
[1752296527222,1.79887809,2953.1,2953.0,23.6109]
[1752296528218,1.79887809,2953.1,2953.0,24.28787]
[1752296528517,1.79887809,2953.1,2953.0,23.6109]
[1752296530321,1.79887809,2953.1,2953.0,24.28787]
[1752296531522,1.12192809,2953.1,2953.0,32.42977916]
[1752296531820,0.67691,2953.3,2953.2,1.61393]
[1752296532122,0.67689,2953.4,2953.3,2.5302]
[1752296532318,0.67689,2953.4,2953.3,20.8957]
[1752296532519,1.80040688,2953.4,2953.3,32.42730916]
[1752296533620,1.12351688,2953.4,2953.3,32.42730916]
[1752296534524,1.80039688,2953.4,2953.3,32.42730916]
[1752296534913,1.80039688,2953.4,2953.3,31.75040916]
[1752296536323,1.80039688,2953.4,2953.3,32.42730916]
[1752296536521,1.80039688,2953.4,2953.3,31.75040916]
[1752296536723,5.10629688,2953.4,2953.3,31.75040916]
[1752296537024,3.73519688,2953.4,2953.3,31.75040916]
[1752296538726,5.10629688,2953.4,2953.3,2.3729]
[1752296538923,3.98283,2953.2,2953.1,2.1946]
[1752296539218,5.10634688,2953.2,2953.1,20.0278]
[1752296539419,5.10634688,2953.2,2953.1,2.1946]
[1752296539623,5.10634688,2953.2,2953.1,1.3105]
[1752296541520,1.62297,2953.0,2952.9,3.0974]
[1752296541721,5.10638688,2953.0,2952.9,19.1266]
[1752296542928,5.10638688,2953.0,2952.9,20.0294]
[1752296543821,5.10638688,2953.0,2952.9,19.1266]
[1752296544428,5.10638688,2953.0,2952.9,20.0294]
[1752296544822,5.10638688,2953.0,2952.5,25.92959099]
[1752296544823,0.946,2952.7,2952.6,1.7869]
[1752296545022,5.10352384,2952.7,2952.6,18.7205]
[1752296545328,5.10352384,2952.7,2952.6,30.25210916]
[1752296545623,5.10352384,2952.7,2952.6,28.46520916]
[1752296545926,5.10352384,2952.7,2952.6,16.9336]
[1752296546327,3.98299,2952.5,2952.4,1.7869]
[1752296546522,5.10357384,2952.5,2952.4,9.92880916]
[1752296546725,3.98308,2952.1,2952.0,4.9947]
[1752296546927,3.98308,2952.1,2952.0,34.77440916]
[1752296547121,3.98308,2952.1,2952.0,33.46390916]
[1752296547422,3.98308,2952.1,2951.0,48.764]
[1752296547423,1.69305,2952.0,2951.5,3.0974]
[1752296547629,3.98319,2951.6,2951.5,3.0974]
[1752296547826,3.98319,2951.6,2951.5,10.33650916]
[1752296548025,3.98319,2951.6,2951.5,31.56900916]
[1752296549627,3.98319,2951.6,2951.5,22.1166]
[1752296550228,0.67736,2951.3,2951.2,28.1614]